fUST/lending_fUST_20241112
["ID","MTS","AMOUNT","RATE_DAILY","PERIOD"]
[342039542,1731379841266,-500.0,0.00021917,2]
[342039543,1731379841275,-1289.49,0.00021917,2]
[342039544,1731379841284,-9010.05,0.00021917,2]
[342039545,1731379841293,-500.0,0.00021917,2]
[342039546,1731379841302,-500.0,0.00021917,2]
[342039547,1731379841312,-1296.2,0.00021917,2]
[342039548,1731379841321,-757.96,0.00021917,2]
[342039549,1731379841330,-545.9,0.00021917,2]
[342039550,1731379841339,-500.0,0.00021917,2]
[342039551,1731379841348,-500.0,0.00021917,2]
[342039552,1731379841358,-503.57572657,0.00021917,2]
[342039553,1731379841367,-500.0,0.00021917,2]
[342039554,1731379841377,-500.0,0.00021917,2]
[342039555,1731379841387,-500.0,0.00021917,2]
[342039556,1731379841396,-500.0,0.00021917,2]
[342039557,1731379841406,-500.0,0.00021917,2]
[342039558,1731379841415,-738.83,0.00021917,2]
[342039559,1731379841424,-2044.32,0.00021917,2]
[342039560,1731379841434,-500.0,0.00021917,2]
[342039561,1731379841443,-500.0,0.00021917,2]
[342039562,1731379841452,-524.46746966,0.00021917,2]
[342039563,1731379841461,-434.64039059,0.00021917,2]
[342039564,1731379841470,-500.0,0.00021917,2]
[342039565,1731379841480,-1550.43,0.00021917,2]
[342039566,1731379841489,-500.0,0.00021917,2]
[342039567,1731379841498,-500.0,0.00021917,2]
[342039568,1731379841507,-500.0,0.00021917,2]
[342039569,1731379841516,-500.0,0.00021917,2]
[342039570,1731379841526,-12744.97,0.00021917,2]
[342039571,1731379841535,-500.0,0.00021917,2]
[342039572,1731379841544,-500.0,0.00021917,2]
[342039573,1731379841692,-618.8,0.00021917,2]
[342039574,1731379841702,-3606.48,0.00021917,2]
[342039575,1731379841712,-500.0,0.00021917,2]
[342039576,1731379841721,-513.71,0.00021917,2]
[342039577,1731379841731,-500.0,0.00021917,2]
[342039578,1731379841740,-500.0,0.00021917,2]
[342039579,1731379841749,-259.69897998,0.00021917,2]
[342039580,1731379841759,-2572.03,0.00021917,2]
[342039581,1731379841769,-5966.0,0.00021917,2]
[342039582,1731379841778,-500.0,0.00021917,2]
[342039583,1731379841788,-500.0,0.00021917,2]
[342039584,1731379841797,-500.0,0.00021917,2]
[342039585,1731379841808,-500.0,0.00021917,2]
[342039586,1731379841817,-500.0,0.00021917,2]
[342039587,1731379841827,-505.53260528,0.00021917,2]
[342039588,1731379841836,-500.0,0.00021917,2]
[342039589,1731379841845,-500.0,0.00021917,2]
[342039590,1731379841854,-500.0,0.00021917,2]
[342039591,1731379841863,-1099.64,0.00021917,2]
[342039592,1731379841872,-500.0,0.00021917,2]
[342039593,1731379841886,-500.0,0.00021917,2]
[342039594,1731379841895,-500.0,0.00021917,2]
[342039595,1731379841904,-500.0,0.00021917,2]
[342039596,1731379841913,-500.0,0.00021917,2]
[342039597,1731379841922,-793.51,0.00021917,2]
[342039598,1731379841931,-503.45774871,0.00021917,2]
[342039599,1731379841940,-500.0,0.00021917,2]
[342039600,1731379841949,-500.0,0.00021917,2]
[342039601,1731379841958,-500.0,0.00021917,2]
[342039602,1731379841968,-500.0,0.00021917,2]
[342039603,1731379841977,-500.0,0.00021917,2]
[342039604,1731379841986,-569.32,0.00021917,2]
[342039605,1731379841995,-4912.51,0.00021917,2]
[342039606,1731379842004,-500.0,0.00021917,2]
[342039607,1731379842014,-573.6345631,0.00021917,2]
[342039608,1731379842023,-500.0,0.00021917,2]
[342039609,1731379842033,-500.0,0.00021917,2]
[342039610,1731379842042,-500.0,0.00021917,2]
[342039611,1731379842051,-500.0,0.00021917,2]
[342039612,1731379842060,-582.13,0.00021917,2]
[342039613,1731379842070,-500.0,0.00021917,2]
[342039614,1731379842079,-500.0,0.00021917,2]
[342039615,1731379842088,-500.0,0.00021917,2]
[342039616,1731379842097,-500.0,0.00021917,2]
[342039617,1731379842106,-500.0,0.00021917,2]
[342039618,1731379842118,-500.0,0.00021917,2]
[342039619,1731379842127,-567.05,0.00021917,2]
[342039620,1731379842140,-166.666666,0.00021918,2]
[342039621,1731379842150,-245.362841,0.00021973,2]
[342039622,1731379842161,-504.61202971,0.00021973,2]
[342039623,1731379842170,-500.0,0.00021973,2]
[342039624,1731379842180,-500.0,0.00021973,2]
[342039625,1731379842189,-500.0,0.00021973,2]
[342039626,1731379842200,-417.53027063,0.00021973,2]
[342039627,1731379842211,-6000.0,0.00021991,2]
[342039628,1731379842220,-160.0,0.00021997,3]
[342039629,1731379842229,-120000.0,0.00022,3]
[342039630,1731379842239,-397.0,0.00022,2]
[342039631,1731379842248,-159.0,0.00022,2]
[342039632,1731379842257,-191.0,0.00022,2]
[342039633,1731379842266,-500.62431236,0.00022173,2]
[342039634,1731379842275,-500.0,0.00022173,2]
[342039635,1731379842285,-500.0,0.00022173,2]
[342039636,1731379842294,-500.0,0.00022173,2]
[342039637,1731379842304,-500.0,0.00022173,2]
[342039638,1731379842312,-500.0,0.00022173,2]
[342039639,1731379842322,-500.74167225,0.00022173,2]
[342039640,1731379842331,-500.0,0.00022173,2]
[342039641,1731379842339,-500.0,0.00022173,2]
[342039642,1731379842348,-500.0,0.00022173,2]
[342039643,1731379842357,-508.05307532,0.00022173,2]
[342039644,1731379842367,-500.0,0.00022173,2]
[342039645,1731379842376,-236.95009608,0.00022173,2]
[342039646,1731379842388,-500.0,0.00022173,2]
[342039647,1731379842397,-500.0,0.00022173,2]
[342039648,1731379842407,-545.16738534,0.00022173,2]
[342039649,1731379842416,-500.0,0.00022173,2]
[342039650,1731379842426,-501.40739327,0.00022173,2]
[342039651,1731379842435,-500.0,0.00022173,2]
[342039652,1731379842444,-500.0,0.00022173,2]
[342039653,1731379842453,-500.0,0.00022191,2]
[342039654,1731379842463,-500.0,0.00022191,2]
[342039655,1731379842472,-500.0,0.00022191,2]
[342039656,1731379842483,-500.0,0.00022191,2]
[342039657,1731379842492,-295.19562065,0.00022191,2]
[342039658,1731379842501,-500.0,0.00022191,2]
[342039659,1731379842510,-500.0,0.00022191,2]
[342039660,1731379842519,-510.80863312,0.00022191,2]
[342039661,1731379842529,-283.13259939,0.00022191,2]
[342039662,1731379842538,-500.0,0.00022191,2]
[342039663,1731379842547,-500.0,0.00022191,2]
[342039664,1731379842557,-500.0,0.00022191,2]
[342039665,1731379842566,-502.50282168,0.00022191,2]
[342039666,1731379842575,-500.0,0.00022191,2]
[342039667,1731379842584,-500.0,0.00022191,2]
[342039668,1731379842594,-500.0,0.00022191,2]
[342039669,1731379842604,-278.39863832,0.00022191,2]
[342039670,1731379842613,-508.57305941,0.00022191,2]
[342039671,1731379842622,-500.0,0.00022191,2]
[342039672,1731379842633,-505.06812904,0.00022191,2]
[342039673,1731379842642,-500.0,0.00022191,2]
[342039674,1731379842651,-335.6252105,0.00022191,2]
[342039675,1731379842659,-516.06778173,0.00022191,2]
[342039676,1731379842669,-500.0,0.00022191,2]
[342039678,1731379842679,-500.0,0.00022191,2]
[342039679,1731379842688,-368.54291511,0.00022191,2]
[342039680,1731379842698,-500.0,0.00022191,2]
[342039681,1731379842706,-500.0,0.00022191,2]
[342039682,1731379842716,-500.0,0.00022191,2]
[342039683,1731379842725,-500.0,0.00022191,2]
[342039684,1731379842734,-500.0,0.00022191,2]
[342039687,1731379842743,-500.0,0.00022191,2]
[342039689,1731379842752,-434.60654883,0.00022191,2]
[342039691,1731379842761,-1000.0,0.00022191,2]
[342039693,1731379842770,-500.0,0.00022191,2]
[342039696,1731379842778,-500.0,0.00022191,2]
[342039699,1731379842788,-504.93897975,0.00022191,2]
[342039702,1731379842798,-500.0,0.00022191,2]
[342039705,1731379842819,-500.0,0.00022191,2]
[342039707,1731379842830,-500.0,0.00022191,2]
[342039709,1731379842839,-500.0,0.00022191,2]
[342039711,1731379842848,-500.0,0.00022191,2]
[342039713,1731379842857,-500.0,0.00022191,2]
[342039715,1731379842867,-500.0,0.00022191,2]
[342039717,1731379842876,-518.22933327,0.00022191,2]
[342039719,1731379842890,-500.0,0.00022191,2]
[342039721,1731379842899,-271.02149687,0.00022191,2]
[342039723,1731379842909,-500.0,0.00022191,2]
[342039725,1731379842919,-561.0,0.00022191,2]
[342039727,1731379842929,-500.0,0.00022191,2]
[342039729,1731379842939,-500.0,0.00022191,2]
[342039731,1731379842949,-500.0,0.00022191,2]
[342039733,1731379842958,-579.93891431,0.00022191,2]
[342039735,1731379842967,-500.0,0.00022191,2]
[342039737,1731379842975,-664.49,0.00022191,2]
[342039739,1731379842985,-500.0,0.00022191,2]
[342039741,1731379842994,-167.12033666,0.00022191,2]
[342039743,1731379843003,-500.0,0.00022191,2]
[342039745,1731379843012,-548.62,0.00022191,2]
[342039747,1731379843022,-500.0,0.00022191,2]
[342039749,1731379843031,-500.0,0.00022191,2]
[342039751,1731379843040,-500.0,0.00022191,2]
[342039753,1731379843050,-500.0,0.00022191,2]
[342039755,1731379843059,-500.0,0.00022191,2]
[342039757,1731379843069,-500.0,0.00022191,2]
[342039759,1731379843078,-500.0,0.00022191,2]
[342039761,1731379843088,-500.0,0.00022191,2]
[342039763,1731379843096,-500.0,0.00022191,2]
[342039765,1731379843106,-500.0,0.00022191,2]
[342039767,1731379843117,-500.0,0.00022191,2]
[342039769,1731379843127,-500.0,0.00022191,2]
[342039771,1731379843140,-500.0,0.00022191,2]
[342039773,1731379843150,-314.51910197,0.00022191,2]
[342039775,1731379843160,-500.0,0.00022191,2]
[342039777,1731379843169,-500.0,0.00022191,2]
[342039779,1731379843179,-2550.51,0.00022191,2]
[342039781,1731379843188,-500.0,0.00022191,2]
[342039783,1731379843199,-173.53484878,0.00022191,2]
[342039785,1731379843209,-500.0,0.00022191,2]
[342039787,1731379843218,-725.9,0.00022191,2]
[342039789,1731379843227,-500.0,0.00022191,2]
[342039791,1731379843236,-508.46324247,0.00022191,2]
[342039793,1731379843246,-500.0,0.00022191,2]
[342039795,1731379843255,-500.0,0.00022191,2]
[342039797,1731379843265,-500.0,0.00022191,2]
[342039799,1731379843274,-500.0,0.00022191,2]
[342039801,1731379843284,-992.82,0.00022191,2]
[342039803,1731379843293,-533.04152695,0.00022191,2]
[342039805,1731379843302,-1143.92,0.00022191,2]
[342039807,1731379843312,-500.0,0.00022191,2]
[342039809,1731379843321,-500.0,0.00022191,2]
[342039811,1731379843330,-577.14,0.00022191,2]
[342039813,1731379843340,-539.45160176,0.00022191,2]
[342039816,1731379843349,-2110.78,0.00022191,2]
[342039818,1731379843359,-500.0,0.00022191,2]
[342039820,1731379843368,-530.05087743,0.00022191,2]
[342039822,1731379843377,-500.0,0.00022191,2]
[342039824,1731379843393,-504.71414334,0.00022191,2]
[342039826,1731379843409,-500.0,0.00022191,2]
[342039828,1731379843419,-500.0,0.00022191,2]
[342039830,1731379843428,-500.0,0.00022191,2]
[342039832,1731379843438,-500.0,0.00022191,2]
[342039834,1731379843447,-2336.0,0.00022191,2]
[342039836,1731379843456,-500.0,0.00022191,2]
[342039838,1731379843466,-500.0,0.00022191,2]
[342039840,1731379843475,-500.0,0.00022191,2]
[342039842,1731379843484,-500.0,0.00022191,2]
[342039844,1731379843492,-500.0,0.00022191,2]
[342039846,1731379843502,-1679.3,0.00022191,2]
[342039848,1731379843511,-500.0,0.00022191,2]
[342039850,1731379843521,-500.0,0.00022191,2]
[342039852,1731379843529,-500.0,0.00022191,2]
[342039854,1731379843539,-500.0,0.00022191,2]
[342039855,1731379843548,-500.0,0.00022191,2]
[342039856,1731379843557,-797.67,0.00022191,2]
[342039858,1731379843567,-500.0,0.00022191,2]
[342039860,1731379843576,-500.0,0.00022191,2]
[342039862,1731379843585,-564.32,0.00022191,2]
[342039864,1731379843594,-500.0,0.00022191,2]
[342039866,1731379843603,-299.49994792,0.00022191,2]
[342039868,1731379843612,-500.0,0.00022191,2]
[342039870,1731379843621,-500.0,0.00022191,2]
[342039872,1731379843634,-514.97562163,0.00022191,2]
[342039874,1731379843642,-500.0,0.00022191,2]
[342039876,1731379843651,-509.67953788,0.00022191,2]
[342039878,1731379843661,-627.66,0.00022191,2]
[342039880,1731379843670,-500.0,0.00022191,2]
[342039882,1731379843679,-500.0,0.00022191,2]
[342039884,1731379843688,-500.0,0.00022191,2]
[342039886,1731379843697,-310.14516488,0.00022191,2]
[342039888,1731379843706,-500.0,0.00022191,2]
[342039890,1731379843716,-1372.06,0.00022191,2]
[342039892,1731379843726,-500.0,0.00022191,2]
[342039894,1731379843735,-500.0,0.00022191,2]
[342039896,1731379843745,-500.0,0.00022191,2]
[342039898,1731379843755,-500.0,0.00022191,2]
[342039900,1731379843764,-500.0,0.00022191,2]
[342039902,1731379843774,-500.0,0.00022191,2]
[342039904,1731379843783,-313.13144397,0.00022191,2]
[342039906,1731379843792,-500.0,0.00022191,2]
[342039908,1731379843802,-500.0,0.00022191,2]
[342039910,1731379843811,-524.77,0.00022191,2]
[342039912,1731379843820,-500.0,0.00022191,2]
[342039914,1731379843830,-710.55,0.00022191,2]
[342039916,1731379843839,-500.0,0.00022191,2]
[342039918,1731379843848,-500.0,0.00022191,2]
[342039920,1731379843857,-500.0,0.00022191,2]
[342039923,1731379843867,-1710.55,0.00022191,2]
[342039924,1731379843876,-500.0,0.00022191,2]
[342039926,1731379843888,-500.0,0.00022191,2]
[342039928,1731379843897,-500.0,0.00022191,2]
[342039931,1731379843906,-596.47,0.00022191,2]
[342039933,1731379843915,-500.0,0.00022191,2]
[342039935,1731379843925,-500.0,0.00022191,2]
[342039937,1731379843934,-511.64566405,0.00022191,2]
[342039939,1731379843943,-665.5251969,0.00022191,2]
[342039980,1731379844330,-768.8948031,0.00022191,2]
[342039983,1731379844339,-382.41369358,0.00022191,2]
[342039985,1731379844349,-555.20918935,0.00022191,2]
[342039987,1731379844358,-7128.37,0.00022191,2]
[342039989,1731379844367,-500.0,0.00022191,2]
[342039991,1731379844376,-500.0,0.00022191,2]
[342039993,1731379844388,-200.0,0.00022191,2]
[342039995,1731379844398,-500.0,0.00022191,2]
[342039997,1731379844407,-500.0,0.00022191,2]
[342039999,1731379844416,-1241.65,0.00022191,2]
[342040001,1731379844426,-175.91163253,0.00022191,2]
[342040003,1731379844435,-543.08,0.00022191,2]
[342040005,1731379844445,-500.0,0.00022191,2]
[342040007,1731379844454,-500.0,0.00022191,2]
[342040009,1731379844463,-500.0,0.00022191,2]
[342040011,1731379844472,-500.0,0.00022191,2]
[342040013,1731379844481,-500.0,0.00022191,2]
[342040015,1731379844491,-633.25,0.00022191,2]
[342040017,1731379844500,-500.0,0.00022191,2]
[342040019,1731379844509,-500.0,0.00022191,2]
[342040021,1731379844519,-500.0,0.00022191,2]
[342040023,1731379844528,-500.0,0.00022191,2]
[342040025,1731379844538,-500.0,0.00022191,2]
[342040027,1731379844547,-276.29030609,0.00022191,2]
[342040028,1731379844556,-500.0,0.00022191,2]
[342040029,1731379844565,-500.0,0.00022191,2]
[342040030,1731379844574,-500.0,0.00022191,2]
[342040031,1731379844584,-934.48,0.00022191,2]
[342040032,1731379844593,-503.12537179,0.00022191,2]
[342040033,1731379844602,-3352.96,0.00022191,2]
[342040034,1731379844611,-502.21664485,0.00022191,2]
[342040035,1731379844620,-500.0,0.00022191,2]
[342040036,1731379844631,-520.63126266,0.00022191,2]
[342040037,1731379844640,-500.0,0.00022191,2]
[342040038,1731379844649,-856.89,0.00022191,2]
[342040039,1731379844658,-1008.35,0.00022191,2]
[342040040,1731379844666,-500.0,0.00022191,2]
[342040041,1731379844675,-500.0,0.00022191,2]
[342040042,1731379844684,-1289.49,0.00022191,2]
[342040043,1731379844693,-9010.05,0.00022191,2]
[342040044,1731379844702,-500.0,0.00022191,2]
[342040045,1731379844711,-500.0,0.00022191,2]
[342040046,1731379844720,-1296.2,0.00022191,2]
[342040047,1731379844729,-757.96,0.00022191,2]
[342040049,1731379844739,-545.9,0.00022191,2]
[342040051,1731379844748,-500.0,0.00022191,2]
[342040053,1731379844758,-500.0,0.00022191,2]
[342040055,1731379844768,-500.0,0.00022191,2]
[342040057,1731379844777,-500.0,0.00022191,2]
[342040058,1731379844785,-266.68190302,0.00022191,2]
[342040060,1731379844795,-500.0,0.00022191,2]
[342040062,1731379844803,-500.0,0.00022191,2]
[342040064,1731379844813,-738.83,0.00022191,2]
[342040066,1731379844821,-2044.32,0.00022191,2]
[342040068,1731379844830,-500.0,0.00022191,2]
[342040070,1731379844839,-502.8475598,0.00022191,2]
[342040072,1731379844848,-500.0,0.00022191,2]
[342040074,1731379844858,-1550.43,0.00022191,2]
[342040076,1731379844868,-503.0840705,0.00022191,2]
[342040078,1731379844878,-500.0,0.00022191,2]
[342040080,1731379844891,-500.0,0.00022191,2]
[342040082,1731379844900,-500.0,0.00022191,2]
[342040084,1731379844909,-12744.97,0.00022191,2]
[342040086,1731379844918,-511.1790426,0.00022191,2]
[342040088,1731379844928,-500.0,0.00022191,2]
[342040090,1731379844937,-618.8,0.00022191,2]
[342040092,1731379844947,-1004.72606941,0.00022191,2]
[342040094,1731379844960,-1956.95366087,0.00022191,2]
[342040096,1731379844971,-644.80026972,0.00022191,2]
[342040098,1731379844980,-500.0,0.00022191,2]
[342040100,1731379844989,-513.71,0.00022191,2]
[342040102,1731379844999,-500.0,0.00022191,2]
[342040104,1731379845008,-381.7199356,0.00022191,2]
[342040106,1731379845017,-2572.03,0.00022191,2]
[342040108,1731379845027,-3626.60019682,0.00022191,2]
[342040110,1731379845038,-2339.39980318,0.00022191,2]
[342040112,1731379845047,-317.85516768,0.00022191,2]
[342040114,1731379845056,-500.0,0.00022191,2]
[342040116,1731379845065,-500.0,0.00022191,2]
[342040119,1731379845074,-500.0,0.00022191,2]
[342040120,1731379845083,-500.0,0.00022191,2]
[342040122,1731379845092,-500.0,0.00022191,2]
[342040124,1731379845101,-459.57714689,0.00022191,2]
[342040127,1731379845112,-40.42285311,0.00022191,2]
[342040129,1731379845124,-500.0,0.00022191,2]
[342040131,1731379845137,-1099.64,0.00022191,2]
[342040133,1731379845146,-500.0,0.00022191,2]
[342040135,1731379845155,-500.0,0.00022191,2]
[342040137,1731379845165,-500.0,0.00022191,2]
[342040139,1731379845174,-500.0,0.00022191,2]
[342040141,1731379845183,-500.0,0.00022191,2]
[342040143,1731379845192,-793.51,0.00022191,2]
[342040145,1731379845204,-500.0,0.00022191,2]
[342040147,1731379845213,-500.0,0.00022191,2]
[342040149,1731379845223,-500.0,0.00022191,2]
[342040151,1731379845232,-500.0,0.00022191,2]
[342040153,1731379845242,-500.0,0.00022191,2]
[342040155,1731379845252,-569.32,0.00022191,2]
[342040157,1731379845261,-4912.51,0.00022191,2]
[342040159,1731379845271,-500.0,0.00022191,2]
[342040161,1731379845280,-500.0,0.00022191,2]
[342040163,1731379845289,-500.0,0.00022191,2]
[342040165,1731379845298,-500.0,0.00022191,2]
[342040167,1731379845307,-500.0,0.00022191,2]
[342040169,1731379845317,-582.13,0.00022191,2]
[342040171,1731379845326,-172.26990846,0.00022191,2]
[342040300,1731380165426,1169.27083333,0.00020845,2]
[342040302,1731380494969,400.0,0.00020845,2]
[342040303,1731380502837,400.0,0.00020845,3]
[342040304,1731380539575,1169.27083333,0.00020845,2]
[342040305,1731380561557,400.0,0.00020845,2]
[342040306,1731380698171,400.0,0.00020845,6]
[342040308,1731380813858,400.0,0.00020845,6]
[342040309,1731380816872,400.0,0.00020845,2]
[342040310,1731380831952,400.0,0.00020845,2]
[342040311,1731380840412,400.0,0.00020845,3]
[342040312,1731380846775,400.0,0.00020845,3]
[342040313,1731380851418,1169.27083333,0.00020845,2]
[342040326,1731380948523,450.0,0.00020845,3]
[342040327,1731380954316,450.0,0.00020845,2]
[342040328,1731380978729,435.0,0.00020845,2]
[342040329,1731380995549,534.64393259,0.00020845,3]
[342040330,1731381004923,150.0,0.00027,60]
[342040397,1731381032749,-571.84043,0.00020845,2]
[342040400,1731381032761,-597.43040333,0.00020845,2]
[342040402,1731381032770,-162.88875,0.00021344,2]
[342040404,1731381032779,-1389.56858989,0.000214,2]
[342040456,1731381038709,-973.22448128,0.000214,2]
[342040457,1731381038722,-316.60692883,0.000214,2]
[342040458,1731381038732,-300.0,0.00021616,2]
[342040459,1731381038744,-300.0,0.00021616,2]
[342040460,1731381038754,-75.60611114,0.00021617,2]
[342040479,1731381040438,-1169.27083333,0.00020845,2]
[342040480,1731381040447,-2720.99110942,0.00021617,2]
[342040490,1731381044157,-3168.49069446,0.00021617,2]
[342040491,1731381044167,-3401.50930555,0.00021679,2]
[342040493,1731381044179,-4159.49069445,0.00021679,2]
[342040495,1731381044189,-4082.30594688,0.00021816,2]
[342040496,1731381044199,-6000.0,0.00021817,2]
[342040497,1731381044208,-1000.0,0.00021817,2]
[342040498,1731381044217,-1578.711394,0.00021817,2]
[342040499,1731381044227,-346.18,0.00021907,3]
[342040500,1731381044236,-173.09,0.00021907,3]
[342040501,1731381044246,-519.28,0.00021907,3]
[342040502,1731381044256,-500.0,0.00021916,2]
[342040503,1731381044265,-500.0,0.00021916,2]
[342040504,1731381044275,-361.92960929,0.00021916,2]
[342040505,1731381044285,-500.0,0.00021916,2]
[342040506,1731381044294,-180.25957069,0.00021916,2]
[342040507,1731381044303,-500.0,0.00021916,2]
[342040508,1731381044312,-500.0,0.00021916,2]
[342040509,1731381044321,-488.39646486,0.00021916,2]
[342040510,1731381044331,-500.0,0.00021916,2]
[342040511,1731381044341,-500.0,0.00021916,2]
[342040512,1731381044350,-500.0,0.00021916,2]
[342040513,1731381044362,-500.0,0.00021916,2]
[342040514,1731381044371,-500.0,0.00021916,2]
[342040515,1731381044381,-496.52579607,0.00021916,2]
[342040516,1731381044390,-625.96784497,0.00021917,2]
[342040517,1731381044400,-500.0,0.00021917,2]
[342040518,1731381044409,-500.0,0.00021917,2]
[342040519,1731381044419,-351.97872525,0.00021917,2]
[342040520,1731381044428,-500.0,0.00021917,2]
[342040521,1731381044438,-500.0,0.00021917,2]
[342040522,1731381044447,-500.0,0.00021917,2]
[342040523,1731381044456,-500.0,0.00021917,2]
[342040525,1731381044465,-502.9,0.00021917,2]
[342040526,1731381044474,-500.0,0.00021917,2]
[342040527,1731381044484,-538.83429899,0.00021917,2]
[342040528,1731381044493,-208.91411871,0.00021917,2]
[342040529,1731381044503,-500.0,0.00021917,2]
[342040530,1731381044512,-500.0,0.00021917,2]
[342040531,1731381044522,-500.0,0.00021917,2]
[342040532,1731381044539,-500.0,0.00021917,2]
[342040533,1731381044548,-504.56590384,0.00021917,2]
[342040534,1731381044558,-500.0,0.00021917,2]
[342040535,1731381044567,-500.0,0.00021917,2]
[342040536,1731381044578,-500.0,0.00021917,2]
[342040537,1731381044588,-500.0,0.00021917,2]
[342040538,1731381044597,-500.0,0.00021917,2]
[342040539,1731381044606,-500.0,0.00021917,2]
[342040540,1731381044619,-500.0,0.00021917,2]
[342040541,1731381044628,-514.25,0.00021917,2]
[342040542,1731381044638,-500.0,0.00021917,2]
[342040543,1731381044648,-291.6045049,0.00021917,2]
[342040544,1731381044657,-675.33,0.00021917,2]
[342040545,1731381044667,-500.0,0.00021917,2]
[342040546,1731381044676,-500.0,0.00021917,2]
[342040547,1731381044685,-200.0,0.00021917,2]
[342040548,1731381044695,-520.60967725,0.00021917,2]
[342040549,1731381044706,-500.0,0.00021917,2]
[342040550,1731381044715,-500.0,0.00021917,2]
[342040551,1731381044725,-521.89410803,0.00021917,2]
[342040552,1731381044734,-500.0,0.00021917,2]
[342040553,1731381044743,-500.0,0.00021917,2]
[342040554,1731381044753,-450.0,0.00021917,2]
[342040555,1731381044763,-410.67589186,0.00021917,2]
[342040556,1731381044772,-500.0,0.00021917,2]
[342040557,1731381044784,-500.0,0.00021917,2]
[342040558,1731381044794,-500.0,0.00021917,2]
[342040559,1731381044805,-500.0,0.00021917,2]
[342040560,1731381044815,-500.0,0.00021917,2]
[342040561,1731381044825,-500.0,0.00021917,2]
[342040562,1731381044835,-500.0,0.00021917,2]
[342040563,1731381044844,-500.0,0.00021917,2]
[342040564,1731381044854,-508.63541294,0.00021917,2]
[342040565,1731381044867,-500.0,0.00021917,2]
[342040566,1731381044876,-500.0,0.00021917,2]
[342040567,1731381044886,-468.4367218,0.00021917,2]
[342040568,1731381044896,-500.0,0.00021917,2]
[342040569,1731381044906,-2337.96,0.00021917,2]
[342040570,1731381044915,-219.82400758,0.00021917,2]
[342040571,1731381044925,-500.0,0.00021917,2]
[342040572,1731381044935,-665.4,0.00021917,2]
[342040573,1731381044944,-500.0,0.00021917,2]
[342040574,1731381044954,-388.42400278,0.00021917,2]
[342040575,1731381044963,-500.0,0.00021917,2]
[342040576,1731381044972,-500.0,0.00021917,2]
[342040577,1731381044982,-500.0,0.00021917,2]
[342040578,1731381044991,-530.88,0.00021917,2]
[342040579,1731381045001,-178.47498037,0.00021917,2]
[342040580,1731381045011,-529.04,0.00021917,2]
[342040581,1731381045020,-1048.6,0.00021917,2]
[342040582,1731381045029,-500.0,0.00021917,2]
[342040583,1731381045039,-510.20463938,0.00021917,2]
[342040584,1731381045048,-500.0,0.00021917,2]
[342040585,1731381045058,-1934.89,0.00021917,2]
[342040586,1731381045067,-2357.69,0.00021917,2]
[342040587,1731381045076,-500.0,0.00021917,2]
[342040588,1731381045086,-500.0,0.00021917,2]
[342040589,1731381045096,-500.0,0.00021917,2]
[342040590,1731381045105,-500.0,0.00021917,2]
[342040591,1731381045118,-500.0,0.00021917,2]